fUSD/lending_fUSD_20260607
["ID","MTS","AMOUNT","RATE_DAILY","PERIOD"]
[424361583,1780783837000,-151.0,0.00019752,2]
[424361591,1780783837000,-126.27589331,0.00021944,2]
[424361582,1780783837000,-150.0,0.00016399,2]
[424361587,1780783837000,-151.0,0.00019752,2]
[424361590,1780783837000,-2319.72410669,0.00021396,2]
[424361586,1780783837000,-151.0,0.00019752,2]
[424361585,1780783837000,-151.0,0.00019752,2]
[424361589,1780783837000,-151.0,0.00019752,2]
[424361588,1780783837000,-151.0,0.00019752,2]
[424361880,1780783840000,-354.48967245,0.00021944,2]
[424361836,1780783840000,-796.24379187,0.00021944,2]
[424362018,1780783843000,-166.9617712,0.00021944,2]
[424362019,1780783843000,-1.65584312,0.00022513,2]
[424362016,1780783843000,-291.88300124,0.00021944,2]
[424362017,1780783843000,-150.0,0.00021944,2]
[424362116,1780783845000,-1197.46835324,0.00021329,2]
[424362118,1780783845000,-2444.53164676,0.00021329,2]
[424362120,1780783845000,-931.34415688,0.00022513,2]
[424362122,1780783845000,-299.0,0.00025959,10]
[424362123,1780783845000,-241.88,0.00027397,20]
[424362121,1780783845000,-933.0,0.00025513,2]
[424362119,1780783845000,-1375.0,0.00022216,2]
[424362124,1780783845000,-300.0,0.00027397,2]
[424362125,1780783845000,-1470.24,0.00027397,2]
[424362126,1780783845000,-38981.00419636,0.00027397,10]
[424362127,1780783846000,-920.0,0.00027397,10]
[424362139,1780784758000,500.0,0.00029711,120]
[424362149,1780785031000,-1160.87387984,9.04e-05,2]
[424362150,1780785031000,-1774.53483621,9.04e-05,2]
[424362152,1780785031000,-282.57062298,9.944e-05,2]
[424362151,1780785031000,-1180.23403696,9.04e-05,2]
[424362164,1780785031000,-500.0,9.999e-05,2]
[424362154,1780785031000,-250.0,9.944e-05,2]
[424362153,1780785031000,-81.67807122,9.944e-05,2]
[424362159,1780785031000,-500.0,9.999e-05,2]
[424362155,1780785031000,-167.8248751,9.944e-05,2]
[424362161,1780785031000,-500.0,9.999e-05,2]
[424362156,1780785031000,-332.1751249,9.944e-05,2]
[424362160,1780785031000,-500.0,9.999e-05,2]
[424362163,1780785031000,-500.0,9.999e-05,2]
[424362158,1780785031000,-500.0,9.999e-05,2]
[424362162,1780785031000,-500.0,9.999e-05,2]
[424362165,1780785031000,-400.33040366,9.999e-05,2]
[424362167,1780785031000,-500.0,9.999e-05,2]
[424362168,1780785031000,-500.0,9.999e-05,2]
[424362157,1780785031000,-150.0,9.998e-05,2]
[424362166,1780785031000,-500.0,9.999e-05,2]
[424362188,1780785032000,-3.65992847,0.00012028,2]
[424362186,1780785032000,-153.33,0.00011996,2]
[424362184,1780785032000,-1048.62,0.0001195,2]
[424362180,1780785032000,-150.0,0.0001189,2]
[424362171,1780785032000,-500.0,9.999e-05,2]
[424362175,1780785032000,-408.59361922,9.999e-05,2]
[424362169,1780785032000,-500.0,9.999e-05,2]
[424362172,1780785032000,-500.0,9.999e-05,2]
[424362176,1780785032000,-11096.6947449,0.0001,2]
[424362170,1780785032000,-500.0,9.999e-05,2]
[424362178,1780785032000,-200.0,0.00011852,2]
[424362177,1780785032000,-255.0,0.00010998,2]
[424362182,1780785032000,-250.0,0.00011945,2]
[424362174,1780785032000,-500.30669836,9.999e-05,2]
[424362191,1780785032000,-146.41581306,0.00012028,2]
[424362173,1780785032000,-371.96994771,9.999e-05,2]
[424362197,1780785032000,-157.79,0.00012329,2]
[424362195,1780785032000,-150.0,0.00012245,2]
[424362234,1780785032000,-8289.7225095,0.00012728,2]
[424362228,1780785032000,-397.84647269,0.00012728,2]
[424362207,1780785032000,-166.044,0.00012669,2]
[424362221,1780785032000,-695.49293192,0.00012728,2]
[424362214,1780785032000,-215.80795776,0.00012717,2]
[424362212,1780785032000,-400.0,0.000127,4]
[424362226,1780785032000,-1849.66319346,0.00012728,2]
[424362216,1780785032000,-1551.48304423,0.00012718,2]
[424362210,1780785032000,-600.0,0.000127,4]
[424362203,1780785032000,-200.0,0.000126,4]
[424362205,1780785032000,-2204.492,0.00012669,2]
[424362199,1780785032000,-1000.0,0.00012341,2]
[424362201,1780785032000,-300.0,0.000126,4]
[424362193,1780785032000,-433.0,0.00012098,2]
[424362219,1780785032000,-1662.22898747,0.00012728,2]
[424362239,1780785037000,-691.58645727,0.00012706,2]
[424362240,1780785037000,-708.38683977,0.00012706,2]
[424362243,1780785037000,-874.22355268,0.00012706,2]
[424362242,1780785037000,-302.16217,0.00012706,2]
[424362241,1780785037000,-739.18699068,0.00012706,2]
[424362267,1780785038000,-1146.38298594,0.00013099,3]
[424362273,1780785038000,-500.0,0.0001317,2]
[424362279,1780785038000,-500.0,0.00013199,4]
[424362281,1780785038000,-500.0,0.00013199,5]
[424362283,1780785038000,-500.0,0.00013199,6]
[424362285,1780785038000,-500.0,0.00013199,7]
[424362292,1780785038000,-736.0,0.00013307,2]
[424362298,1780785038000,-215.68245,0.00013425,2]
[424362294,1780785038000,-24379.73409111,0.00013341,2]
[424362287,1780785038000,-1249.90894967,0.0001321,2]
[424362289,1780785038000,-1868.86991547,0.0001323,2]
[424362311,1780785038000,-150.0,0.00013488,2]
[424362300,1780785038000,-160.0,0.00013425,2]
[424362302,1780785038000,-166.752973,0.00013425,2]
[424362304,1780785038000,-173.505947,0.00013425,2]
[424362306,1780785038000,-160.68923,0.00013425,2]
[424362315,1780785038000,-150.0,0.00013488,2]
[424362319,1780785038000,-150.0,0.00013488,2]
[424362308,1780785038000,-500.0,0.00013444,2]
[424362321,1780785038000,-150.0,0.00013488,2]
[424362309,1780785038000,-150.0,0.00013488,2]
[424362268,1780785038000,-2000.0,0.000131,2]
[424362317,1780785038000,-150.0,0.00013488,2]
[424362326,1780785038000,-278.028158,0.00013492,2]
[424362296,1780785038000,-1249.90894967,0.00013421,2]
[424362272,1780785038000,-166.66,0.00013149,2]
[424362254,1780785038000,-99329.7918,0.00012828,2]
[424362271,1780785038000,-10379.287197,0.0001314,2]
[424362327,1780785038000,-160.0,0.00013492,2]
[424362244,1780785038000,-3210.38338063,0.00012706,2]
[424362245,1780785038000,-84275.36700897,0.00012706,2]
[424362247,1780785038000,-166.66,0.00012729,2]
[424362250,1780785038000,-13304.19206286,0.00012806,2]
[424362251,1780785038000,-2500.0,0.00012828,2]
[424362249,1780785038000,-600.0,0.000128,4]
[424362252,1780785038000,-3147.943,0.00012828,2]
[424362246,1780785038000,-1487105.04590496,0.00012728,2]
[424362248,1780785038000,-900.0,0.000128,4]
[424362253,1780785038000,-2486.8746,0.00012828,2]
[424362256,1780785038000,-500.0,0.00012896,2]
[424362257,1780785038000,-1868.8699155,0.00012896,2]
[424362255,1780785038000,-361.0,0.00012877,2]
[424362258,1780785038000,-24379.73409119,0.00012896,2]
[424362260,1780785038000,-288.77334833,0.00012899,2]
[424362261,1780785038000,-1200.0,0.000129,4]
[424362263,1780785038000,-1551.48304423,0.00012918,2]
[424362262,1780785038000,-800.0,0.000129,4]
[424362265,1780785038000,-153.33,0.00012996,2]
[424362266,1780785038000,-1249.90894967,0.00012999,2]
[424362275,1780785038000,-500.0,0.00013199,2]
[424362264,1780785038000,-1000.0,0.00012927,2]
[424362277,1780785038000,-500.0,0.00013199,3]
[424362269,1780785038000,-30719.603,0.000131,2]
[424362270,1780785038000,-24379.73409111,0.00013119,2]
[424362323,1780785038000,-291.63421312,0.00013488,2]
[424362259,1780785038000,-5331.51849141,0.00012896,2]
[424362313,1780785038000,-151.41923818,0.00013488,2]
[424362393,1780785038000,-150.0,0.00013624,2]
[424362395,1780785038000,-291.63421312,0.00013624,2]
[424362397,1780785038000,-150.0,0.00013624,2]
[424362398,1780785038000,-1249.90894967,0.00013633,2]
[424362400,1780785038000,-291.63421312,0.00013639,2]
[424362403,1780785038000,-150.0,0.00013645,2]
[424362440,1780785038000,-500.0,0.00013698,2]
[424362405,1780785038000,-291.63421312,0.00013654,2]
[424362414,1780785038000,-150.0,0.00013685,2]
[424362416,1780785038000,-150.0,0.00013692,2]
[424362409,1780785038000,-291.63421312,0.00013669,2]
[424362424,1780785038000,-500.0,0.00013698,2]
[424362411,1780785038000,-291.63421312,0.00013684,2]
[424362407,1780785038000,-150.0,0.00013658,2]
[424362420,1780785038000,-500.0,0.00013698,2]
[424362422,1780785038000,-500.0,0.00013698,2]
[424362418,1780785038000,-500.0,0.00013698,2]
[424362426,1780785038000,-500.0,0.00013698,2]
[424362433,1780785038000,-404.1,0.00013698,2]
[424362442,1780785038000,-500.0,0.00013698,2]
[424362435,1780785038000,-520.43,0.00013698,2]
[424362429,1780785038000,-500.0,0.00013698,2]
[424362444,1780785038000,-500.0,0.00013698,2]
[424362438,1780785038000,-500.0,0.00013698,2]
[424362431,1780785038000,-500.0,0.00013698,2]
[424362377,1780785038000,-166.66,0.00013569,2]
[424362391,1780785038000,-150.0,0.00013613,2]
[424362324,1780785038000,-150.0,0.00013488,2]
[424362389,1780785038000,-291.63421312,0.00013609,2]
[424362386,1780785038000,-150.0,0.00013606,2]
[424362329,1780785038000,-252.499054,0.00013492,2]
[424362335,1780785038000,-500.0,0.00013497,9]
[424362333,1780785038000,-500.0,0.00013497,8]
[424362331,1780785038000,-344.998109,0.00013492,2]
[424362343,1780785038000,-500.0,0.00013497,13]
[424362349,1780785038000,-291.63421312,0.00013518,2]
[424362351,1780785038000,-150.0,0.00013522,2]
[424362339,1780785038000,-500.0,0.00013497,11]
[424362347,1780785038000,-291.63421312,0.00013503,2]
[424362336,1780785038000,-500.0,0.00013497,10]
[424362345,1780785038000,-500.0,0.00013497,14]
[424362353,1780785038000,-150.0,0.00013527,2]
[424362341,1780785038000,-500.0,0.00013497,12]
[424362360,1780785038000,-291.63421312,0.00013548,2]
[424362356,1780785038000,-291.63421312,0.00013533,2]
[424362380,1780785038000,-291.63421312,0.00013578,2]
[424362382,1780785038000,-150.0,0.0001359,2]
[424362371,1780785038000,-1868.86991547,0.00013564,2]
[424362366,1780785038000,-465.412722,0.00013559,2]
[424362368,1780785038000,-291.63421312,0.00013563,2]
[424362364,1780785038000,-150.0,0.00013556,2]
[424362384,1780785038000,-291.63421312,0.00013594,2]
[424362375,1780785038000,-150.0,0.00013567,2]
[424362362,1780785038000,-232.746661,0.00013549,2]
[424362373,1780785038000,-24379.73409111,0.00013564,2]
[424362358,1780785038000,-168.410917,0.00013537,2]
[424362524,1780785039000,-601.48,0.00013698,2]
[424362533,1780785039000,-601.48,0.00013698,2]
[424362527,1780785039000,-601.48,0.00013698,2]
[424362518,1780785039000,-601.48,0.00013698,2]
[424362512,1780785039000,-500.0,0.00013698,2]
[424362516,1780785039000,-257.3388504,0.00013698,2]
[424362522,1780785039000,-601.48,0.00013698,2]
[424362520,1780785039000,-601.48,0.00013698,2]
[424362501,1780785039000,-500.0,0.00013698,2]
[424362531,1780785039000,-601.48,0.00013698,2]
[424362514,1780785039000,-500.0,0.00013698,2]
[424362529,1780785039000,-601.48,0.00013698,2]
[424362569,1780785039000,-500.0,0.00013698,2]
[424362541,1780785039000,-601.48,0.00013698,2]
[424362535,1780785039000,-500.0,0.00013698,2]
[424362548,1780785039000,-500.0,0.00013698,2]
[424362543,1780785039000,-500.0,0.00013698,2]
[424362539,1780785039000,-500.0,0.00013698,2]
[424362546,1780785039000,-601.48,0.00013698,2]
[424362550,1780785039000,-601.48,0.00013698,2]
[424362561,1780785039000,-500.0,0.00013698,2]
[424362563,1780785039000,-500.0,0.00013698,2]
[424362565,1780785039000,-500.0,0.00013698,2]
[424362567,1780785039000,-500.0,0.00013698,2]
[424362508,1780785039000,-500.0,0.00013698,2]
[424362537,1780785039000,-601.48,0.00013698,2]
[424362510,1780785039000,-500.0,0.00013698,2]
[424362476,1780785039000,-500.0,0.00013698,2]
[424362503,1780785039000,-500.0,0.00013698,2]
[424362553,1780785039000,-500.0,0.00013698,2]
[424362447,1780785039000,-640.59,0.00013698,2]
[424362449,1780785039000,-500.0,0.00013698,2]
[424362451,1780785039000,-500.0,0.00013698,2]
[424362453,1780785039000,-500.0,0.00013698,2]
[424362464,1780785039000,-500.0,0.00013698,2]
[424362466,1780785039000,-500.0,0.00013698,2]
[424362459,1780785039000,-500.0,0.00013698,2]
[424362468,1780785039000,-500.0,0.00013698,2]
[424362470,1780785039000,-500.0,0.00013698,2]
[424362455,1780785039000,-517.63739233,0.00013698,2]
[424362461,1780785039000,-500.0,0.00013698,2]
[424362506,1780785039000,-500.0,0.00013698,2]
[424362457,1780785039000,-500.0,0.00013698,2]
[424362472,1780785039000,-500.0,0.00013698,2]
[424362487,1780785039000,-500.0,0.00013698,2]
[424362489,1780785039000,-500.0,0.00013698,2]
[424362481,1780785039000,-500.0,0.00013698,2]
[424362495,1780785039000,-500.0,0.00013698,2]
[424362482,1780785039000,-500.0,0.00013698,2]
[424362491,1780785039000,-500.45399039,0.00013698,2]
[424362497,1780785039000,-500.0,0.00013698,2]
[424362493,1780785039000,-500.0,0.00013698,2]
[424362479,1780785039000,-500.0,0.00013698,2]
[424362484,1780785039000,-500.0,0.00013698,2]
[424362499,1780785039000,-500.0,0.00013698,2]
[424362474,1780785039000,-500.0,0.00013698,2]
[424362571,1780785039000,-500.0,0.00013698,2]
[424362555,1780785039000,-500.0,0.00013698,2]
[424362671,1780785039000,-500.0,0.00013698,2]
[424362635,1780785039000,-500.0,0.00013698,2]
[424362634,1780785039000,-500.0,0.00013698,2]
[424362637,1780785039000,-500.0,0.00013698,2]
[424362621,1780785039000,-500.0,0.00013698,2]
[424362632,1780785039000,-500.0,0.00013698,2]
[424362623,1780785039000,-500.0,0.00013698,2]
[424362624,1780785039000,-500.0,0.00013698,2]
[424362627,1780785039000,-500.0,0.00013698,2]
[424362628,1780785039000,-500.0,0.00013698,2]
[424362639,1780785039000,-500.0,0.00013698,2]
[424362641,1780785039000,-500.0,0.00013698,2]
[424362649,1780785039000,-500.0,0.00013698,2]
[424362618,1780785039000,-500.0,0.00013698,2]
[424362645,1780785039000,-500.0,0.00013698,2]
[424362647,1780785039000,-500.0,0.00013698,2]
[424362651,1780785039000,-500.0,0.00013698,2]
[424362656,1780785039000,-500.0,0.00013698,2]
[424362658,1780785039000,-500.0,0.00013698,2]
[424362660,1780785039000,-500.0,0.00013698,2]
[424362662,1780785039000,-500.0,0.00013698,2]
[424362673,1780785039000,-500.0,0.00013698,2]
[424362670,1780785039000,-500.0,0.00013698,2]
[424362668,1780785039000,-500.0,0.00013698,2]
[424362666,1780785039000,-500.0,0.00013698,2]
[424362664,1780785039000,-500.0,0.00013698,2]
[424362557,1780785039000,-601.48,0.00013698,2]
[424362654,1780785039000,-500.0,0.00013698,2]
[424362630,1780785039000,-500.0,0.00013698,2]
[424362643,1780785039000,-500.0,0.00013698,2]
[424362615,1780785039000,-457.12873569,0.00013698,2]
[424362619,1780785039000,-500.0,0.00013698,2]
[424362573,1780785039000,-500.0,0.00013698,2]
[424362575,1780785039000,-500.0,0.00013698,2]
[424362585,1780785039000,-500.0,0.00013698,2]
[424362577,1780785039000,-500.0,0.00013698,2]
[424362587,1780785039000,-500.0,0.00013698,2]
[424362581,1780785039000,-500.0,0.00013698,2]
[424362579,1780785039000,-500.0,0.00013698,2]
[424362583,1780785039000,-500.0,0.00013698,2]
[424362589,1780785039000,-500.0,0.00013698,2]
[424362595,1780785039000,-500.0,0.00013698,2]
[424362591,1780785039000,-500.0,0.00013698,2]
[424362593,1780785039000,-500.0,0.00013698,2]
[424362559,1780785039000,-601.48,0.00013698,2]
[424362602,1780785039000,-500.0,0.00013698,2]
[424362597,1780785039000,-500.0,0.00013698,2]
[424362617,1780785039000,-500.0,0.00013698,2]
[424362613,1780785039000,-500.0,0.00013698,2]
[424362614,1780785039000,-500.0,0.00013698,2]
[424362612,1780785039000,-159.01048571,0.00013698,2]
[424362611,1780785039000,-500.0,0.00013698,2]
[424362616,1780785039000,-500.0,0.00013698,2]
[424362610,1780785039000,-500.0,0.00013698,2]
[424362600,1780785039000,-500.0,0.00013698,2]
[424362606,1780785039000,-500.0,0.00013698,2]
[424362604,1780785039000,-500.0,0.00013698,2]
[424362608,1780785039000,-500.0,0.00013698,2]
[424362761,1780785040000,-1154.14053874,0.00013699,2]
[424362757,1780785040000,-1163.08736462,0.00013699,2]
[424362755,1780785040000,-1163.08736462,0.00013699,2]
[424362740,1780785040000,-500.0,0.00013699,2]
[424362747,1780785040000,-500.0,0.00013699,2]
[424362749,1780785040000,-500.0,0.00013699,2]
[424362751,1780785040000,-1163.08736462,0.00013699,2]
[424362753,1780785040000,-1163.08736462,0.00013699,2]
[424362742,1780785040000,-500.0,0.00013699,2]
[424362738,1780785040000,-474.66789454,0.00013699,2]
[424362759,1780785040000,-1154.14053874,0.00013699,2]
[424362744,1780785040000,-500.0,0.00013699,2]
[424362768,1780785040000,-1154.14053874,0.00013699,2]
[424362772,1780785040000,-1154.14053874,0.00013699,2]
[424362770,1780785040000,-1154.14053874,0.00013699,2]
[424362765,1780785040000,-1154.14053874,0.00013699,2]
[424362766,1780785040000,-1154.14053874,0.00013699,2]
[424362775,1780785040000,-1154.14053874,0.00013699,2]
[424362778,1780785040000,-1154.14053874,0.00013699,2]
[424362777,1780785040000,-1154.14053874,0.00013699,2]
[424362781,1780785040000,-1154.14053874,0.00013699,2]
[424362783,1780785040000,-1154.14053874,0.00013699,2]
[424362785,1780785040000,-1154.14053874,0.00013699,2]
[424362787,1780785040000,-1154.14053874,0.00013699,2]
[424362798,1780785040000,-1154.14053874,0.00013699,2]
[424362736,1780785040000,-500.0,0.00013699,2]
[424362763,1780785040000,-1154.14053874,0.00013699,2]
[424362733,1780785040000,-500.0,0.00013699,2]
[424362801,1780785040000,-1154.14053874,0.00013699,2]
[424362723,1780785040000,-225.09,0.00013699,2]
[424362675,1780785040000,-500.0,0.00013698,2]
[424362677,1780785040000,-500.0,0.00013698,2]
[424362681,1780785040000,-500.0,0.00013698,2]
[424362679,1780785040000,-500.0,0.00013698,2]
[424362683,1780785040000,-556.45,0.00013698,2]
[424362685,1780785040000,-556.45,0.00013698,2]
[424362688,1780785040000,-556.45,0.00013698,2]
[424362690,1780785040000,-556.45,0.00013698,2]
[424362694,1780785040000,-556.45,0.00013698,2]
[424362691,1780785040000,-556.45,0.00013698,2]
[424362695,1780785040000,-556.45,0.00013698,2]
[424362703,1780785040000,-556.45,0.00013698,2]
[424362727,1780785040000,-156.31,0.00013699,2]
[424362708,1780785040000,-556.45,0.00013698,2]
[424362700,1780785040000,-556.45,0.00013698,2]
[424362705,1780785040000,-556.45,0.00013698,2]
[424362701,1780785040000,-556.45,0.00013698,2]
[424362712,1780785040000,-500.0,0.00013698,2]
[424362716,1780785040000,-166.66,0.00013699,2]
[424362714,1780785040000,-502.77238855,0.00013698,2]
[424362718,1780785040000,-2500.0,0.00013699,2]
[424362729,1780785040000,-781.58,0.00013699,2]
[424362721,1780785040000,-200.0,0.00013699,2]
[424362710,1780785040000,-556.45,0.00013698,2]
[424362731,1780785040000,-500.0,0.00013699,2]
[424362725,1780785040000,-187.57,0.00013699,2]
[424362697,1780785040000,-556.45,0.00013698,2]
[424362794,1780785040000,-1154.14053874,0.00013699,2]
[424362894,1780785040000,-1151.25518739,0.00013699,2]
[424362792,1780785040000,-1154.14053874,0.00013699,2]
[424362873,1780785040000,-1154.14053874,0.00013699,2]
[424362857,1780785040000,-1154.14053874,0.00013699,2]
[424362861,1780785040000,-1154.14053874,0.00013699,2]
[424362864,1780785040000,-1154.14053874,0.00013699,2]
[424362859,1780785040000,-1154.14053874,0.00013699,2]
[424362875,1780785040000,-1154.14053874,0.00013699,2]
[424362877,1780785040000,-1151.25518739,0.00013699,2]
[424362876,1780785040000,-1154.14053874,0.00013699,2]
[424362866,1780785040000,-1154.14053874,0.00013699,2]
[424362880,1780785040000,-1151.25518739,0.00013699,2]
[424362881,1780785040000,-1151.25518739,0.00013699,2]
[424362879,1780785040000,-1151.25518739,0.00013699,2]
[424362855,1780785040000,-1154.14053874,0.00013699,2]
[424362882,1780785040000,-1151.25518739,0.00013699,2]
[424362887,1780785040000,-1151.25518739,0.00013699,2]
[424362885,1780785040000,-1151.25518739,0.00013699,2]
[424362889,1780785040000,-1151.25518739,0.00013699,2]
[424362891,1780785040000,-1151.25518739,0.00013699,2]
[424362886,1780785040000,-1151.25518739,0.00013699,2]
[424362884,1780785040000,-1151.25518739,0.00013699,2]
[424362890,1780785040000,-1151.25518739,0.00013699,2]
[424362892,1780785040000,-1151.25518739,0.00013699,2]
[424362893,1780785040000,-1151.25518739,0.00013699,2]
[424362898,1780785040000,-1151.25518739,0.00013699,2]
[424362796,1780785040000,-1154.14053874,0.00013699,2]
[424362896,1780785040000,-1151.25518739,0.00013699,2]
[424362883,1780785040000,-1151.25518739,0.00013699,2]
[424362870,1780785040000,-1154.14053874,0.00013699,2]
[424362878,1780785040000,-1151.25518739,0.00013699,2]
[424362867,1780785040000,-1154.14053874,0.00013699,2]
[424362790,1780785040000,-1154.14053874,0.00013699,2]
[424362803,1780785040000,-1154.14053874,0.00013699,2]
[424362872,1780785040000,-1154.14053874,0.00013699,2]
[424362805,1780785040000,-1154.14053874,0.00013699,2]
[424362809,1780785040000,-1154.14053874,0.00013699,2]
[424362811,1780785040000,-1154.14053874,0.00013699,2]
[424362813,1780785040000,-1154.14053874,0.00013699,2]
[424362815,1780785040000,-1154.14053874,0.00013699,2]
[424362826,1780785040000,-1154.14053874,0.00013699,2]
[424362807,1780785040000,-1154.14053874,0.00013699,2]
[424362821,1780785040000,-1154.14053874,0.00013699,2]
[424362828,1780785040000,-1154.14053874,0.00013699,2]
[424362820,1780785040000,-1154.14053874,0.00013699,2]
[424362817,1780785040000,-1154.14053874,0.00013699,2]
[424362830,1780785040000,-1154.14053874,0.00013699,2]
[424362849,1780785040000,-1154.14053874,0.00013699,2]
[424362853,1780785040000,-1154.14053874,0.00013699,2]
[424362824,1780785040000,-1154.14053874,0.00013699,2]
[424362851,1780785040000,-1154.14053874,0.00013699,2]
[424362840,1780785040000,-1154.14053874,0.00013699,2]
[424362836,1780785040000,-1154.14053874,0.00013699,2]
[424362844,1780785040000,-1154.14053874,0.00013699,2]
[424362847,1780785040000,-1154.14053874,0.00013699,2]
[424362838,1780785040000,-1154.14053874,0.00013699,2]
[424362834,1780785040000,-1154.14053874,0.00013699,2]
[424362832,1780785040000,-1154.14053874,0.00013699,2]
[424362843,1780785040000,-1154.14053874,0.00013699,2]
[424362948,1780785041000,-291.63421312,0.00013881,2]
[424362951,1780785041000,-150.0,0.00013896,2]
[424362945,1780785041000,-155.4453539,0.00013864,2]
[424362963,1780785041000,-150.0,0.00013921,2]
[424362946,1780785041000,-291.63421312,0.00013866,2]
[424362962,1780785041000,-291.63421312,0.00013912,2]
[424362959,1780785041000,-288.77334831,0.000139,2]
[424362956,1780785041000,-1868.86991547,0.00013898,2]
[424362954,1780785041000,-150.0,0.00013896,2]
[424362957,1780785041000,-5331.51849141,0.00013898,2]
[424362960,1780785041000,-1100.0,0.000139,5]
[424362949,1780785041000,-150.0,0.00013882,2]
[424362994,1780785041000,-150.0,0.00013999,2]
[424362965,1780785041000,-291.63421312,0.00013927,2]
[424362967,1780785041000,-150.0,0.0001393,2]
[424362979,1780785041000,-166.66,0.00013973,2]
[424362968,1780785041000,-291.63421312,0.00013942,2]
[424362970,1780785041000,-150.0,0.00013951,2]
[424362978,1780785041000,-291.63421312,0.00013972,2]
[424362976,1780785041000,-150.0,0.00013965,2]
[424362981,1780785041000,-150.0,0.00013987,2]
[424362974,1780785041000,-150.0,0.00013961,2]
[424362983,1780785041000,-150.0,0.00013987,2]
[424362972,1780785041000,-291.63421312,0.00013957,2]
[424362998,1780785041000,-2313.79356356,0.00014,2]
[424362939,1780785041000,-1249.90894967,0.00013844,2]
[424362953,1780785041000,-291.63421312,0.00013896,2]
[424362942,1780785041000,-150.0,0.00013862,2]
[424362905,1780785041000,-500.0,0.00013718,2]
[424362943,1780785041000,-150.0,0.00013862,2]
[424362984,1780785041000,-150.0,0.00013987,2]
[424362903,1780785041000,-291.63421312,0.00013715,2]
[424362908,1780785041000,-150.0,0.00013726,2]
[424362907,1780785041000,-150.0,0.00013724,2]
[424362902,1780785041000,-291.63421312,0.000137,2]
[424362900,1780785041000,-1279.17243039,0.00013699,2]
[424362899,1780785041000,-1151.25518739,0.00013699,2]
[424362911,1780785041000,-150.0,0.00013737,2]
[424362910,1780785041000,-291.63421312,0.0001373,2]
[424362914,1780785041000,-291.63421312,0.00013745,2]
[424362917,1780785041000,-291.63421312,0.0001376,2]
[424362913,1780785041000,-150.0,0.00013737,2]
[424362919,1780785041000,-150.0,0.0001376,2]
[424362922,1780785041000,-291.63421312,0.00013775,2]
[424362924,1780785041000,-24379.73409111,0.00013787,2]
[424362923,1780785041000,-160.8907078,0.00013781,2]
[424362916,1780785041000,-150.0,0.0001376,2]
[424362926,1780785041000,-291.63421312,0.0001379,2]
[424362921,1780785041000,-150.0,0.00013764,2]
[424362929,1780785041000,-150.0,0.00013803,2]
[424362932,1780785041000,-291.63421312,0.00013821,2]
[424362934,1780785041000,-166.66,0.00013836,2]
[424362930,1780785041000,-291.63421312,0.00013806,2]
[424362927,1780785041000,-150.0,0.00013794,2]
[424362933,1780785041000,-150.0,0.00013828,2]
[424362937,1780785041000,-150.0,0.00013843,2]
[424362940,1780785041000,-291.63421312,0.00013851,2]
[424362936,1780785041000,-291.63421312,0.00013836,2]
[424363000,1780785041000,-150.0,0.00014,2]
[424363059,1780785041000,-291.63421312,0.00014214,2]
[424362996,1780785041000,-250.0,0.00014,2]
[424363044,1780785041000,-344.316892,0.00014167,2]
[424363049,1780785041000,-150.0,0.00014169,2]
[424363048,1780785041000,-291.63421312,0.00014169,2]
[424363051,1780785041000,-291.63421312,0.00014184,2]
[424363054,1780785041000,-291.63421312,0.00014199,2]
[424363052,1780785041000,-150.0,0.00014198,2]
[424363064,1780785041000,-1868.86991547,0.00014232,2]
[424363057,1780785041000,-1839.60337747,0.0001421,7]